[Event "Late-Titled-Tuesday-Blitz-May-14-2024"]
[Site "Chess.com"]
[Date "2024.05.14"]
[Round "1"]
[White "Angry_Twin"]
[Black "lrjchess"]
[Result "1-0"]
[WhiteElo "2914"]
[BlackElo "2517"]
[TimeControl "180+1"]
[EndTime "14:10:45 PDT"]
[Termination "Angry_Twin won by resignation"]

1. e4 {[%clk 0:02:59.8]} 1... d5 {[%clk 0:02:58.9]} 2. exd5 {[%clk 0:02:59.3]}
2... Nf6 {[%clk 0:02:59.3]} 3. d4 {[%clk 0:02:59.3]} 3... Bg4 {[%clk 0:02:59.4]}
4. Be2 {[%clk 0:02:54.7]} 4... Bxe2 {[%clk 0:02:58.2]} 5. Qxe2 {[%clk
0:02:54.9]} 5... Qxd5 {[%clk 0:02:58.7]} 6. Nf3 {[%clk 0:02:55.4]} 6... e6
{[%clk 0:02:58.9]} 7. O-O {[%clk 0:02:55.2]} 7... Nc6 {[%clk 0:02:58.7]} 8. c3
{[%clk 0:02:55.3]} 8... O-O-O {[%clk 0:02:58.3]} 9. Re1 {[%clk 0:02:55.1]} 9...
Bd6 {[%clk 0:02:58.3]} 10. c4 {[%clk 0:02:27.7]} 10... Qh5 {[%clk 0:02:55.3]}
11. h3 {[%clk 0:02:28]} 11... Rhg8 {[%clk 0:02:43.5]} 12. Bg5 {[%clk 0:01:21.2]}
12... Nxd4 {[%clk 0:02:29.1]} 13. Nxd4 {[%clk 0:01:21.5]} 13... Qxg5 {[%clk
0:02:28.9]} 14. Nc3 {[%clk 0:01:22.4]} 14... Qh5 {[%clk 0:02:21.2]} 15. Qxh5
{[%clk 0:01:18.9]} 15... Nxh5 {[%clk 0:02:22.1]} 16. Rad1 {[%clk 0:01:17.3]}
16... Bb4 {[%clk 0:02:21]} 17. g3 {[%clk 0:00:58.4]} 17... Bxc3 {[%clk
0:02:20.4]} 18. bxc3 {[%clk 0:00:59.3]} 18... Nf6 {[%clk 0:02:16.3]} 19. Kg2
{[%clk 0:00:54.4]} 19... Rd7 {[%clk 0:02:14.9]} 20. Nf3 {[%clk 0:00:53.5]} 20...
Rxd1 {[%clk 0:02:13]} 21. Rxd1 {[%clk 0:00:53.4]} 21... Rd8 {[%clk 0:02:13.7]}
22. Rc1 {[%clk 0:00:51.3]} 22... Kd7 {[%clk 0:02:10.3]} 23. Ne5+ {[%clk
0:00:51.2]} 23... Ke7 {[%clk 0:02:10.9]} 24. Rc2 {[%clk 0:00:49]} 24... Nd7
{[%clk 0:02:09.4]} 25. Nd3 {[%clk 0:00:48]} 25... Nb6 {[%clk 0:02:08]} 26. Nb2
{[%clk 0:00:48.2]} 26... c5 {[%clk 0:02:04.1]} 27. Kf3 {[%clk 0:00:48.5]} 27...
e5 {[%clk 0:02:02.8]} 28. Ke2 {[%clk 0:00:48.5]} 28... Ke6 {[%clk 0:02:03]} 29.
Nd3 {[%clk 0:00:48.5]} 29... Nd7 {[%clk 0:02:01.9]} 30. Rb2 {[%clk 0:00:49]}
30... b6 {[%clk 0:02:01.8]} 31. a4 {[%clk 0:00:49.7]} 31... Rb8 {[%clk 0:01:55]}
32. Ra2 {[%clk 0:00:49]} 32... a5 {[%clk 0:01:51.8]} 33. Rb2 {[%clk 0:00:48.6]}
33... g5 {[%clk 0:01:51.4]} 34. f3 {[%clk 0:00:45.7]} 34... f5 {[%clk
0:01:50.7]} 35. g4 {[%clk 0:00:46.1]} 35... e4 {[%clk 0:01:47.7]} 36. fxe4
{[%clk 0:00:46.4]} 36... fxe4 {[%clk 0:01:47.9]} 37. Nf2 {[%clk 0:00:47.3]}
37... Ke5 {[%clk 0:01:45.5]} 38. Ke3 {[%clk 0:00:47.4]} 38... Rf8 {[%clk
0:01:44.6]} 39. Nxe4 {[%clk 0:00:45.5]} 39... h6 {[%clk 0:01:43.9]} 40. Nd2
{[%clk 0:00:43.5]} 40... Rf4 {[%clk 0:01:41.9]} 41. Rb1 {[%clk 0:00:38.8]} 41...
Kd6 {[%clk 0:01:37.1]} 42. Kd3 {[%clk 0:00:13.8]} 42... Ne5+ {[%clk 0:01:30]}
43. Kc2 {[%clk 0:00:13.9]} 43... Kc6 {[%clk 0:01:28.5]} 44. Re1 {[%clk
0:00:13.8]} 44... Kd6 {[%clk 0:01:25]} 45. Ne4+ {[%clk 0:00:12.9]} 45... Kc6
{[%clk 0:01:12.3]} 46. Nd2 {[%clk 0:00:03.6]} 46... Kd6 {[%clk 0:01:06.5]} 47.
Ne4+ {[%clk 0:00:04]} 47... Ke6 {[%clk 0:01:07.1]} 48. Nd2 {[%clk 0:00:02.1]}
48... Rf2 {[%clk 0:00:52.1]} 49. Kd1 {[%clk 0:00:02.1]} 49... Rf8 {[%clk
0:00:43.8]} 50. Kc2 {[%clk 0:00:02]} 50... Re8 {[%clk 0:00:41.4]} 51. Re2 {[%clk
0:00:02.3]} 51... Kd6 {[%clk 0:00:41.7]} 52. Ne4+ {[%clk 0:00:02.6]} 52... Kc6
{[%clk 0:00:41.7]} 53. Nf6 {[%clk 0:00:03.2]} 53... Re6 {[%clk 0:00:40.6]} 54.
Nd5 {[%clk 0:00:03.3]} 54... Re8 {[%clk 0:00:32.7]} 55. Kb3 {[%clk 0:00:03.4]}
55... Kd6 {[%clk 0:00:31.2]} 56. Nf6 {[%clk 0:00:03.4]} 56... Re7 {[%clk
0:00:29.3]} 57. Rd2+ {[%clk 0:00:03.9]} 57... Kc6 {[%clk 0:00:28.4]} 58. Nd5
{[%clk 0:00:04.6]} 58... Rf7 {[%clk 0:00:22.3]} 59. Re2 {[%clk 0:00:04.9]} 59...
Kd6 {[%clk 0:00:19.9]} 60. Rd2 {[%clk 0:00:04.2]} 60... Nf3 {[%clk 0:00:19.3]}
61. Rd3 {[%clk 0:00:04.1]} 61... Ne5 {[%clk 0:00:18.9]} 62. Rd1 {[%clk
0:00:04.4]} 62... Kc6 {[%clk 0:00:19.1]} 63. Re1 {[%clk 0:00:04.7]} 63... Kd6
{[%clk 0:00:19.2]} 64. Ne3 {[%clk 0:00:04.7]} 64... Rf2 {[%clk 0:00:17.7]} 65.
Nf5+ {[%clk 0:00:05.3]} 65... Ke6 {[%clk 0:00:18]} 66. Nxh6 {[%clk 0:00:03.9]}
66... Kf6 {[%clk 0:00:18.7]} 67. Re3 {[%clk 0:00:02.6]} 67... Rf1 {[%clk
0:00:18.2]} 68. Nf5 {[%clk 0:00:02.7]} 68... Rb1+ {[%clk 0:00:17.8]} 69. Kc2
{[%clk 0:00:03.3]} 69... Ra1 {[%clk 0:00:18.2]} 70. Nd6 {[%clk 0:00:03.5]} 70...
Rxa4 {[%clk 0:00:17.4]} 71. Kb3 {[%clk 0:00:03]} 71... Ra1 {[%clk 0:00:17.6]}
72. Re2 {[%clk 0:00:03.6]} 72... Rh1 {[%clk 0:00:17.5]} 73. Rf2+ {[%clk
0:00:02.6]} 73... Kg6 {[%clk 0:00:17.7]} 74. Nf5 {[%clk 0:00:02.5]} 74... Rxh3
{[%clk 0:00:16.7]} 75. Ne7+ {[%clk 0:00:03.1]} 75... Kg7 {[%clk 0:00:16.4]} 76.
Nf5+ {[%clk 0:00:03.7]} 76... Kg6 {[%clk 0:00:16.3]} 77. Ne7+ {[%clk 0:00:04]}
77... Kg7 {[%clk 0:00:15.6]} 78. Nd5 {[%clk 0:00:04.7]} 78... Nxg4 {[%clk
0:00:15.3]} 79. Rg2 {[%clk 0:00:05.2]} 79... Rh4 {[%clk 0:00:14.8]} 80. Nxb6
{[%clk 0:00:04.6]} 80... Kg6 {[%clk 0:00:14.9]} 81. Nd7 {[%clk 0:00:05.1]} 81...
Ne3 {[%clk 0:00:15]} 82. Rg1 {[%clk 0:00:04.2]} 82... g4 {[%clk 0:00:15.1]} 83.
Nxc5 {[%clk 0:00:04.1]} 83... g3 {[%clk 0:00:15.3]} 84. Rxg3+ {[%clk 0:00:03.9]}
84... Ng4 {[%clk 0:00:14.6]} 85. Nd3 {[%clk 0:00:04.3]} 85... Kf5 {[%clk
0:00:14.7]} 86. c5 {[%clk 0:00:04.8]} 86... Rh8 {[%clk 0:00:13.3]} 87. c6 {[%clk
0:00:04.3]} 87... Rc8 {[%clk 0:00:13.4]} 88. Rg1 {[%clk 0:00:02.7]} 88... Rxc6
{[%clk 0:00:13.1]} 89. Nb2 {[%clk 0:00:03.1]} 89... Rb6+ {[%clk 0:00:12.9]} 90.
Ka3 {[%clk 0:00:03]} 90... Ne3 {[%clk 0:00:12.7]} 91. Na4 {[%clk 0:00:02.5]}
91... Nc4+ {[%clk 0:00:11.2]} 92. Ka2 {[%clk 0:00:02.9]} 92... Rb8 {[%clk
0:00:11.9]} 93. Rf1+ {[%clk 0:00:03.4]} 93... Ke4 {[%clk 0:00:12.1]} 94. Rd1
{[%clk 0:00:04.3]} 94... Ne3 {[%clk 0:00:11.8]} 95. Rd4+ {[%clk 0:00:04.4]}
95... Ke5 {[%clk 0:00:12.4]} 96. Nc5 {[%clk 0:00:05.1]} 96... Nc2 {[%clk
0:00:11.1]} 97. Nd7+ {[%clk 0:00:05.3]} 97... Ke6 {[%clk 0:00:11.3]} 98. Rd2
{[%clk 0:00:04.2]} 98... Rd8 {[%clk 0:00:09.5]} 99. Nc5+ {[%clk 0:00:04.4]}
99... Ke7 {[%clk 0:00:09.6]} 100. Rxc2 {[%clk 0:00:05.1]} 100... Rc8 {[%clk
0:00:10.1]} 101. Nb3 {[%clk 0:00:05.2]} 101... a4 {[%clk 0:00:10.2]} 102. Nd4
{[%clk 0:00:05.8]} 102... Kd6 {[%clk 0:00:10.6]} 103. Ka3 {[%clk 0:00:05.8]}
103... Kd5 {[%clk 0:00:11.1]} 104. Nf3 {[%clk 0:00:03.2]} 104... Kc4 {[%clk
0:00:11.4]} 105. Ne5+ {[%clk 0:00:03.8]} 105... Kd5 {[%clk 0:00:11.8]} 106. Nd3
{[%clk 0:00:04.2]} 106... Kc4 {[%clk 0:00:12.2]} 107. Nb2+ {[%clk 0:00:04.9]}
107... Kd5 {[%clk 0:00:11.8]} 108. Nxa4 {[%clk 0:00:04.7]} 108... Kc4 {[%clk
0:00:11.8]} 109. Nb2+ {[%clk 0:00:05.1]} 109... Kd5 {[%clk 0:00:12.1]} 110. Rd2+
{[%clk 0:00:05.1]} 110... Kc5 {[%clk 0:00:12.3]} 111. Kb3 {[%clk 0:00:06]}
111... Rb8+ {[%clk 0:00:12.6]} 112. Kc2 {[%clk 0:00:06.6]} 112... Ra8 {[%clk
0:00:13.1]} 113. Rd4 {[%clk 0:00:06.9]} 113... Kb5 {[%clk 0:00:13.5]} 114. Rb4+
{[%clk 0:00:06.9]} 114... Kc5 {[%clk 0:00:14.4]} 115. Na4+ {[%clk 0:00:07]}
115... Kd5 {[%clk 0:00:14.3]} 116. Kb3 {[%clk 0:00:07.9]} 116... Rh8 {[%clk
0:00:14.6]} 117. Rb5+ {[%clk 0:00:08.1]} 117... Kc6 {[%clk 0:00:14.8]} 118. Rb4
{[%clk 0:00:09]} 118... Kd6 {[%clk 0:00:15.7]} 119. Rd4+ {[%clk 0:00:09.4]}
119... Kc6 {[%clk 0:00:15.9]} 120. Kc4 {[%clk 0:00:09.8]} 120... Rh1 {[%clk
0:00:16.7]} 121. Nc5 {[%clk 0:00:09.8]} 121... Ra1 {[%clk 0:00:17.6]} 122. Nd3
{[%clk 0:00:10.2]} 122... Ra4+ {[%clk 0:00:17.7]} 123. Nb4+ {[%clk 0:00:11.1]}
123... Kb6 {[%clk 0:00:17.5]} 124. Rd6+ {[%clk 0:00:11.6]} 124... Kc7 {[%clk
0:00:18.1]} 125. Rh6 {[%clk 0:00:12.5]} 125... Ra1 {[%clk 0:00:18.1]} 126. Kc5
{[%clk 0:00:12.5]} 126... Kb7 {[%clk 0:00:18.3]} 127. Rh7+ {[%clk 0:00:12.5]}
127... Kc8 {[%clk 0:00:19.2]} 128. Kb6 {[%clk 0:00:12.5]} 128... Rc1 {[%clk
0:00:19]} 129. Nd5 {[%clk 0:00:12]} 129... Kd8 {[%clk 0:00:18.8]} 130. Kc6
{[%clk 0:00:10.8]} 130... Ke8 {[%clk 0:00:19.2]} 131. Re7+ {[%clk 0:00:10.6]}
131... Kf8 {[%clk 0:00:19.2]} 132. Re2 {[%clk 0:00:11.2]} 132... Kf7 {[%clk
0:00:18.9]} 133. Re4 {[%clk 0:00:11.5]} 133... Rd1 {[%clk 0:00:17.6]} 134. c4
{[%clk 0:00:11.8]} 134... Kg6 {[%clk 0:00:18.3]} 135. c5 {[%clk 0:00:12.3]}
135... Kf5 {[%clk 0:00:19.2]} 136. Re2 {[%clk 0:00:12.6]} 136... Rc1 {[%clk
0:00:18.8]} 137. Kd6 {[%clk 0:00:12.8]} 137... Rc2 {[%clk 0:00:19.2]} 138. Rxc2
{[%clk 0:00:11.2]} 1-0

[Event "Late-Titled-Tuesday-Blitz-May-14-2024"]
[Site "Chess.com"]
[Date "2024.05.14"]
[Round "2"]
[White "RantomOpening"]
[Black "KNVB"]
[Result "0-1"]
[WhiteElo "2574"]
[BlackElo "2830"]
[TimeControl "180+1"]
[EndTime "14:13:05 PDT"]
[Termination "KNVB won by resignation"]

1. c4 {[%clk 0:03:00.2]} 1... c5 {[%clk 0:02:58.8]} 2. Nf3 {[%clk 0:02:58.8]}
2... b6 {[%clk 0:02:58.4]} 3. Nc3 {[%clk 0:02:54.4]} 3... Bb7 {[%clk 0:02:58.8]}
4. e3 {[%clk 0:02:54.8]} 4... e6 {[%clk 0:02:59]} 5. d4 {[%clk 0:02:54.4]} 5...
cxd4 {[%clk 0:02:59.9]} 6. exd4 {[%clk 0:02:55.3]} 6... Nf6 {[%clk 0:02:59.4]}
7. Be2 {[%clk 0:02:45.4]} 7... d5 {[%clk 0:02:50.9]} 8. cxd5 {[%clk 0:02:40.7]}
8... Nxd5 {[%clk 0:02:51]} 9. O-O {[%clk 0:02:37.4]} 9... Be7 {[%clk 0:02:46.6]}
10. Bb5+ {[%clk 0:02:33.2]} 10... Bc6 {[%clk 0:02:46.5]} 11. Qa4 {[%clk
0:02:27.7]} 11... Qd7 {[%clk 0:02:44.4]} 12. Ne5 {[%clk 0:02:24.4]} 12... Nxc3
{[%clk 0:02:39.6]} 13. Bxc6 {[%clk 0:02:07.7]} 13... Nxa4 {[%clk 0:02:38.3]} 14.
Nxd7 {[%clk 0:02:06.1]} 14... Nxc6 {[%clk 0:02:37.7]} 0-1

[Event "Late-Titled-Tuesday-Blitz-May-14-2024"]
[Site "Chess.com"]
[Date "2024.05.14"]
[Round "2"]
[White "tarno17"]
[Black "dennisodessa"]
[Result "1-0"]
[WhiteElo "2210"]
[BlackElo "2455"]
[TimeControl "180+1"]
[EndTime "14:13:15 PDT"]
[Termination "tarno17 won by resignation"]

1. e4 {[%clk 0:03:00.9]} 1... e6 {[%clk 0:03:00.2]} 2. d4 {[%clk 0:03:00.4]}
2... d5 {[%clk 0:03:00.9]} 3. Nd2 {[%clk 0:03:00.6]} 3... Be7 {[%clk 0:03:00.9]}
4. c3 {[%clk 0:02:59.6]} 4... c5 {[%clk 0:02:52.2]} 5. exd5 {[%clk 0:02:51.3]}
5... Qxd5 {[%clk 0:02:48.7]} 6. Ngf3 {[%clk 0:02:43.4]} 6... cxd4 {[%clk
0:02:47]} 7. Bc4 {[%clk 0:02:40.6]} 7... Qd6 {[%clk 0:02:43.5]} 8. Ne4 {[%clk
0:02:27.6]} 8... Qc6 {[%clk 0:02:38.8]} 9. Qe2 {[%clk 0:02:05]} 9... dxc3 {[%clk
0:02:36.9]} 10. Bb5 {[%clk 0:02:02.4]} 10... cxb2 {[%clk 0:02:36.1]} 11. Bxc6+
{[%clk 0:02:01.7]} 11... Nxc6 {[%clk 0:02:37]} 12. Bxb2 {[%clk 0:01:59.8]} 12...
f6 {[%clk 0:02:35.6]} 13. O-O {[%clk 0:01:55.9]} 13... Nh6 {[%clk 0:02:35.6]}
14. Rac1 {[%clk 0:01:50]} 1-0

[Event "Late-Titled-Tuesday-Blitz-May-14-2024"]
[Site "Chess.com"]
[Date "2024.05.14"]
[Round "2"]
[White "nabukatnezarr"]
[Black "Indefatigable11"]
[Result "1-0"]
[WhiteElo "2623"]
[BlackElo "2388"]
[TimeControl "180+1"]
[EndTime "14:13:23 PDT"]
[Termination "nabukatnezarr won by checkmate"]

1. b3 {[%clk 0:03:00.9]} 1... d5 {[%clk 0:02:58.1]} 2. Bb2 {[%clk 0:03:00.5]}
2... Nf6 {[%clk 0:02:57.9]} 3. e3 {[%clk 0:03:00]} 3... c5 {[%clk 0:02:58]} 4.
Nf3 {[%clk 0:02:59.4]} 4... Nc6 {[%clk 0:02:58.1]} 5. Bb5 {[%clk 0:02:59.2]}
5... Bd7 {[%clk 0:02:58]} 6. O-O {[%clk 0:02:57.5]} 6... e6 {[%clk 0:02:58.1]}
7. c4 {[%clk 0:02:54.9]} 7... Bd6 {[%clk 0:02:57.4]} 8. cxd5 {[%clk 0:02:51]}
8... exd5 {[%clk 0:02:57.6]} 9. d4 {[%clk 0:02:50.4]} 9... O-O {[%clk
0:02:56.3]} 10. Bxc6 {[%clk 0:02:42.5]} 10... Bxc6 {[%clk 0:02:54.7]} 11. dxc5
{[%clk 0:02:42.8]} 11... Bxc5 {[%clk 0:02:54.4]} 12. Nbd2 {[%clk 0:02:35.9]}
12... Bd6 {[%clk 0:02:53.6]} 13. h3 {[%clk 0:02:35]} 13... Ne4 {[%clk
0:02:50.9]} 14. Nd4 {[%clk 0:02:28]} 14... Bc7 {[%clk 0:02:45.1]} 15. Nxe4
{[%clk 0:01:47.9]} 15... dxe4 {[%clk 0:02:44.1]} 16. Nxc6 {[%clk 0:01:48.5]}
16... bxc6 {[%clk 0:02:43.5]} 17. Qg4 {[%clk 0:01:48]} 17... f5 {[%clk
0:02:41.5]} 18. Qxg7# {[%clk 0:01:41.5]} 1-0

[Event "Late-Titled-Tuesday-Blitz-May-14-2024"]
[Site "Chess.com"]
[Date "2024.05.14"]
[Round "2"]
[White "BillCoe"]
[Black "picturesquecheck"]
[Result "0-1"]
[WhiteElo "2153"]
[BlackElo "2458"]
[TimeControl "180+1"]
[EndTime "14:13:50 PDT"]
[Termination "picturesquecheck won by resignation"]

1. e4 {[%clk 0:03:00.9]} 1... c5 {[%clk 0:02:59.7]} 2. Nf3 {[%clk 0:03:01]} 2...
d6 {[%clk 0:02:59.9]} 3. d4 {[%clk 0:03:01]} 3... cxd4 {[%clk 0:03:00.8]} 4.
Nxd4 {[%clk 0:03:01.4]} 4... Nf6 {[%clk 0:02:59.1]} 5. Nc3 {[%clk 0:03:01.7]}
5... Nc6 {[%clk 0:02:59.3]} 6. h3 {[%clk 0:03:00.3]} 6... e5 {[%clk 0:02:58.5]}
7. Nde2 {[%clk 0:02:59.6]} 7... Be7 {[%clk 0:02:58.3]} 8. g4 {[%clk 0:02:59.6]}
8... O-O {[%clk 0:02:58]} 9. Bg2 {[%clk 0:02:59.9]} 9... Be6 {[%clk 0:02:57.8]}
10. O-O {[%clk 0:02:59.6]} 10... Rc8 {[%clk 0:02:57.7]} 11. Nd5 {[%clk
0:02:58.7]} 11... Bxd5 {[%clk 0:02:57.1]} 12. exd5 {[%clk 0:02:59.6]} 12... Nb4
{[%clk 0:02:57.5]} 13. Nc3 {[%clk 0:02:52.6]} 13... a5 {[%clk 0:02:56.9]} 14. a3
{[%clk 0:02:52.6]} 14... Na6 {[%clk 0:02:56.7]} 15. Be3 {[%clk 0:02:48.1]} 15...
Nd7 {[%clk 0:02:54.1]} 16. Ne4 {[%clk 0:02:41.8]} 16... g6 {[%clk 0:02:48.4]}
17. b3 {[%clk 0:02:40]} 17... Ndc5 {[%clk 0:02:47.6]} 18. Nxc5 {[%clk
0:02:36.1]} 18... Nxc5 {[%clk 0:02:48.5]} 19. c4 {[%clk 0:02:35.8]} 19... a4
{[%clk 0:02:44.7]} 20. b4 {[%clk 0:02:35.1]} 20... Nb3 {[%clk 0:02:43.6]} 21.
Ra2 {[%clk 0:02:28.3]} 21... Rxc4 {[%clk 0:02:42.8]} 22. Re1 {[%clk 0:02:19.1]}
22... Bg5 {[%clk 0:02:41.9]} 23. Bf1 {[%clk 0:02:15.6]} 23... Rc8 {[%clk
0:02:21.7]} 24. Bd3 {[%clk 0:02:00.7]} 24... Bxe3 {[%clk 0:02:19.8]} 25. Rxe3
{[%clk 0:02:01.6]} 25... Rc1 {[%clk 0:02:18.5]} 0-1

[Event "Late-Titled-Tuesday-Blitz-May-14-2024"]
[Site "Chess.com"]
[Date "2024.05.14"]
[Round "2"]
[White "N_Mullodzhanov"]
[Black "Alexander_Donchenko"]
[Result "1-0"]
[WhiteElo "2601"]
[BlackElo "2844"]
[TimeControl "180+1"]
[EndTime "14:13:52 PDT"]
[Termination "N_Mullodzhanov won by resignation"]

1. e4 {[%clk 0:03:00.9]} 1... c6 {[%clk 0:02:56.8]} 2. Nc3 {[%clk 0:03:00.5]}
2... d5 {[%clk 0:02:57.7]} 3. Nf3 {[%clk 0:03:00.8]} 3... Nf6 {[%clk 0:02:54.3]}
4. e5 {[%clk 0:02:57.8]} 4... Ne4 {[%clk 0:02:54.4]} 5. d4 {[%clk 0:02:54.6]}
5... Nxc3 {[%clk 0:02:53.7]} 6. bxc3 {[%clk 0:02:54.8]} 6... c5 {[%clk
0:02:53.5]} 7. Be2 {[%clk 0:02:49.7]} 7... Bg4 {[%clk 0:02:52.8]} 8. O-O {[%clk
0:02:49.2]} 8... Nc6 {[%clk 0:02:52.1]} 9. Rb1 {[%clk 0:02:47.4]} 9... Qc7
{[%clk 0:02:48]} 10. h3 {[%clk 0:02:43.4]} 10... Bxf3 {[%clk 0:02:46.5]} 11.
Bxf3 {[%clk 0:02:44.3]} 11... e6 {[%clk 0:02:46.1]} 12. g3 {[%clk 0:02:42.3]}
12... Be7 {[%clk 0:02:45.5]} 13. Bg2 {[%clk 0:02:39.3]} 13... O-O {[%clk
0:02:41.6]} 14. h4 {[%clk 0:02:39.4]} 14... cxd4 {[%clk 0:02:41.7]} 15. cxd4
{[%clk 0:02:39.4]} 15... Nb4 {[%clk 0:02:42.4]} 16. Ba3 {[%clk 0:02:34.4]} 16...
Nxa2 {[%clk 0:02:38]} 17. Bxe7 {[%clk 0:02:30]} 17... Qxe7 {[%clk 0:02:38.9]}
18. Qd2 {[%clk 0:02:25.9]} 18... Rfc8 {[%clk 0:02:36.5]} 19. c4 {[%clk
0:02:19.5]} 19... Rxc4 {[%clk 0:02:32.4]} 20. Qxa2 {[%clk 0:02:16.4]} 20... Rxd4
{[%clk 0:02:33]} 21. Qb2 {[%clk 0:02:14]} 21... Rc4 {[%clk 0:02:22.8]} 22. Qxb7
{[%clk 0:02:12.3]} 22... Qxb7 {[%clk 0:02:20.3]} 23. Rxb7 {[%clk 0:02:13.2]}
23... h5 {[%clk 0:02:15.8]} 24. Rfb1 {[%clk 0:02:08.5]} 24... a5 {[%clk
0:02:13.8]} 25. Bf1 {[%clk 0:02:04.3]} 25... Re4 {[%clk 0:02:11.4]} 26. Rb8+
{[%clk 0:02:04.1]} 26... Rxb8 {[%clk 0:02:10.6]} 27. Rxb8+ {[%clk 0:02:05]}
27... Kh7 {[%clk 0:02:10.9]} 28. Bd3 {[%clk 0:02:05.8]} 1-0

[Event "Late-Titled-Tuesday-Blitz-May-14-2024"]
[Site "Chess.com"]
[Date "2024.05.14"]
[Round "2"]
[White "The_Straightforward_Rook"]
[Black "leclash"]
[Result "0-1"]
[WhiteElo "2492"]
[BlackElo "2296"]
[TimeControl "180+1"]
[EndTime "14:13:55 PDT"]
[Termination "leclash won by resignation"]

1. d4 {[%clk 0:02:42.8]} 1... d5 {[%clk 0:02:59.4]} 2. Nf3 {[%clk 0:02:42.2]}
2... Nf6 {[%clk 0:02:59.3]} 3. c4 {[%clk 0:02:42.6]} 3... c6 {[%clk 0:02:59.4]}
4. Nc3 {[%clk 0:02:42.2]} 4... e6 {[%clk 0:02:59.8]} 5. Bf4 {[%clk 0:02:41.3]}
5... dxc4 {[%clk 0:02:58]} 6. e4 {[%clk 0:02:41.2]} 6... b5 {[%clk 0:02:54.3]}
7. g3 {[%clk 0:02:41.1]} 7... Be7 {[%clk 0:02:39.9]} 8. Bg2 {[%clk 0:02:40.8]}
8... O-O {[%clk 0:02:38.4]} 9. O-O {[%clk 0:02:41.1]} 9... Bb7 {[%clk
0:02:36.5]} 10. Re1 {[%clk 0:02:40.7]} 10... Nbd7 {[%clk 0:02:34.9]} 11. h4
{[%clk 0:02:40.1]} 11... Qb6 {[%clk 0:02:27.7]} 12. Qc2 {[%clk 0:02:32.7]} 12...
h6 {[%clk 0:02:14.5]} 13. Rad1 {[%clk 0:02:26.9]} 13... Rfd8 {[%clk 0:02:13.4]}
14. e5 {[%clk 0:02:20.8]} 14... Nd5 {[%clk 0:02:12.2]} 15. Ne4 {[%clk
0:02:21.5]} 15... c5 {[%clk 0:02:08.5]} 16. dxc5 {[%clk 0:02:08]} 16... Nxc5
{[%clk 0:02:07.7]} 17. Nxc5 {[%clk 0:01:54.4]} 17... Bxc5 {[%clk 0:02:06.4]} 18.
g4 {[%clk 0:01:52.2]} 18... Nxf4 {[%clk 0:02:05]} 0-1

[Event "Late-Titled-Tuesday-Blitz-May-14-2024"]
[Site "Chess.com"]
[Date "2024.05.14"]
[Round "2"]
[White "CombativeWombat"]
[Black "rdarruda"]
[Result "1-0"]
[WhiteElo "2343"]
[BlackElo "2522"]
[TimeControl "180+1"]
[EndTime "14:14:30 PDT"]
[Termination "CombativeWombat won by checkmate"]

1. e4 {[%clk 0:03:00.9]} 1... c5 {[%clk 0:02:59.3]} 2. Nf3 {[%clk 0:03:00.6]}
2... Nc6 {[%clk 0:02:59.3]} 3. Nc3 {[%clk 0:03:00.2]} 3... e6 {[%clk 0:02:58.6]}
4. d4 {[%clk 0:03:00.1]} 4... cxd4 {[%clk 0:02:57.9]} 5. Nxd4 {[%clk 0:03:00.4]}
5... d6 {[%clk 0:02:58.3]} 6. Be2 {[%clk 0:02:59.7]} 6... Nf6 {[%clk 0:02:58.4]}
7. O-O {[%clk 0:02:59.2]} 7... Be7 {[%clk 0:02:58.7]} 8. Be3 {[%clk 0:02:59]}
8... O-O {[%clk 0:02:58.5]} 9. f4 {[%clk 0:02:58.7]} 9... a6 {[%clk 0:02:55.2]}
10. a4 {[%clk 0:02:57.7]} 10... Qc7 {[%clk 0:02:54.2]} 11. Kh1 {[%clk
0:02:57.4]} 11... Rd8 {[%clk 0:02:50.7]} 12. Bd3 {[%clk 0:02:55.6]} 12... d5
{[%clk 0:02:48.7]} 13. e5 {[%clk 0:02:51.7]} 13... Ne4 {[%clk 0:02:48.3]} 14.
Nxe4 {[%clk 0:02:42.5]} 14... dxe4 {[%clk 0:02:49.2]} 15. Bxe4 {[%clk 0:02:43]}
15... Nxd4 {[%clk 0:02:47.4]} 16. Bxd4 {[%clk 0:02:42.9]} 16... Bc5 {[%clk
0:02:47.3]} 17. c3 {[%clk 0:02:38.3]} 17... Bxd4 {[%clk 0:02:47.1]} 18. cxd4
{[%clk 0:02:38.4]} 18... Qb6 {[%clk 0:02:47.7]} 19. Qc2 {[%clk 0:02:00.2]} 19...
Bd7 {[%clk 0:02:37.9]} 20. Bxh7+ {[%clk 0:01:48.2]} 20... Kh8 {[%clk 0:02:36.1]}
21. Ra3 {[%clk 0:01:34.4]} 21... g6 {[%clk 0:02:11.3]} 22. Bxg6 {[%clk
0:01:33.7]} 22... Kg7 {[%clk 0:02:11.2]} 23. Rg3 {[%clk 0:01:29.1]} 23... Be8
{[%clk 0:02:10.8]} 24. Bxf7+ {[%clk 0:01:24]} 24... Kxf7 {[%clk 0:02:11.7]} 25.
Qh7+ {[%clk 0:01:23.4]} 25... Kf8 {[%clk 0:02:11.2]} 26. Rg8# {[%clk 0:01:23.5]}
1-0

[Event "Late-Titled-Tuesday-Blitz-May-14-2024"]
[Site "Chess.com"]
[Date "2024.05.14"]
[Round "2"]
[White "toninhojit"]
[Black "cukus"]
[Result "1-0"]
[WhiteElo "2543"]
[BlackElo "2334"]
[TimeControl "180+1"]
[EndTime "14:15:05 PDT"]
[Termination "toninhojit won by resignation"]

1. c4 {[%clk 0:03:00.9]} 1... e6 {[%clk 0:02:56.6]} 2. Nc3 {[%clk 0:02:59.8]}
2... d5 {[%clk 0:02:56.7]} 3. d4 {[%clk 0:03:00.4]} 3... c6 {[%clk 0:02:55.2]}
4. Nf3 {[%clk 0:02:57.5]} 4... f5 {[%clk 0:02:54.9]} 5. g3 {[%clk 0:02:55.4]}
5... Nf6 {[%clk 0:02:54.9]} 6. Bg2 {[%clk 0:02:56.3]} 6... Bd6 {[%clk
0:02:55.1]} 7. O-O {[%clk 0:02:57.2]} 7... O-O {[%clk 0:02:55.3]} 8. Bf4 {[%clk
0:02:57.6]} 8... Ne4 {[%clk 0:02:53.2]} 9. Bxd6 {[%clk 0:02:57.2]} 9... Qxd6
{[%clk 0:02:54.1]} 10. Qd3 {[%clk 0:02:56.7]} 10... Nd7 {[%clk 0:02:53.8]} 11.
Rab1 {[%clk 0:02:52.4]} 11... Ndf6 {[%clk 0:02:53.5]} 12. b4 {[%clk 0:02:51.3]}
12... Bd7 {[%clk 0:02:53.6]} 13. c5 {[%clk 0:02:47.4]} 13... Qe7 {[%clk
0:02:53]} 14. Ne5 {[%clk 0:02:48]} 14... Be8 {[%clk 0:02:52.9]} 15. f3 {[%clk
0:02:47.4]} 15... Nxc3 {[%clk 0:02:52.6]} 16. Qxc3 {[%clk 0:02:48.3]} 16... Bh5
{[%clk 0:02:51]} 17. a4 {[%clk 0:02:47.8]} 17... Nd7 {[%clk 0:02:46.4]} 18. Qe3
{[%clk 0:02:47.7]} 18... Bg6 {[%clk 0:02:18.8]} 19. Nxd7 {[%clk 0:02:45.9]}
19... Qxd7 {[%clk 0:02:18.4]} 20. f4 {[%clk 0:02:46.4]} 20... a5 {[%clk
0:02:05.7]} 21. b5 {[%clk 0:02:46]} 21... cxb5 {[%clk 0:02:05.3]} 22. Rxb5
{[%clk 0:02:46.9]} 22... Qc8 {[%clk 0:01:53.1]} 23. Rfb1 {[%clk 0:02:46.7]}
23... Be8 {[%clk 0:01:52.8]} 24. Rxb7 {[%clk 0:02:35.7]} 24... Bxa4 {[%clk
0:01:52.4]} 25. Bxd5 {[%clk 0:02:32.9]} 25... Re8 {[%clk 0:01:31.7]} 26. Qe5
{[%clk 0:02:27.4]} 26... Bd7 {[%clk 0:01:30.6]} 27. Rxd7 {[%clk 0:02:21.4]}
27... Qxd7 {[%clk 0:01:29.5]} 28. Rb7 {[%clk 0:02:21.3]} 28... exd5 {[%clk
0:01:19.8]} 29. Rxd7 {[%clk 0:02:13.3]} 29... Rxe5 {[%clk 0:01:19.5]} 30. fxe5
{[%clk 0:02:13.7]} 30... a4 {[%clk 0:01:19.2]} 31. c6 {[%clk 0:02:14.2]} 31...
a3 {[%clk 0:01:19.3]} 32. c7 {[%clk 0:02:14.7]} 1-0